fUST/lending_fUST_20240824
["ID","MTS","AMOUNT","RATE_DAILY","PERIOD"]
[335817356,1724506273204,-500.0,0.00014246,2]
[335817357,1724506273214,-232.57120854,0.00014246,2]
[335817358,1724506273224,-500.0,0.00014246,2]
[335817359,1724506273234,-979.92,0.00014246,2]
[335817360,1724506273246,-1930.64,0.00014246,2]
[335817361,1724506273257,-724.3,0.00014246,2]
[335817362,1724506273267,-500.0,0.00014246,2]
[335817363,1724506273276,-500.0,0.00014246,2]
[335817364,1724506273286,-500.0,0.00014246,2]
[335817365,1724506273295,-1285.05,0.00014246,2]
[335817366,1724506273304,-1298.61,0.00014246,2]
[335817367,1724506273314,-1157.53,0.00014246,2]
[335817368,1724506273324,-1382.45,0.00014246,2]
[335817369,1724506273334,-500.0,0.00014246,2]
[335817370,1724506273345,-1169.01,0.00014246,2]
[335817371,1724506273355,-500.0,0.00014246,2]
[335817372,1724506273366,-500.0,0.00014246,2]
[335817373,1724506273378,-1360.88,0.00014246,2]
[335817374,1724506273388,-500.0,0.00014246,2]
[335817375,1724506273399,-500.0,0.00014246,2]
[335817376,1724506273408,-516.71,0.00014246,2]
[335817377,1724506273418,-942.71,0.00014246,2]
[335817378,1724506273427,-500.0,0.00014246,2]
[335817379,1724506273436,-500.0,0.00014246,2]
[335817380,1724506273446,-1444.38,0.00014246,2]
[335817381,1724506273455,-736.52,0.00014246,2]
[335817382,1724506273464,-500.0,0.00014246,2]
[335817383,1724506273475,-1038.66,0.00014246,2]
[335817384,1724506273489,-1480.85,0.00014246,2]
[335817385,1724506273498,-500.0,0.00014246,2]
[335817386,1724506273508,-500.0,0.00014246,2]
[335817387,1724506273517,-500.0,0.00014246,2]
[335817388,1724506273528,-500.0,0.00014246,2]
[335817389,1724506273537,-677.94,0.00014246,2]
[335817390,1724506273547,-500.0,0.00014246,2]
[335817391,1724506273556,-500.0,0.00014246,2]
[335817392,1724506273568,-708.27,0.00014246,2]
[335817393,1724506273577,-500.0,0.00014246,2]
[335817394,1724506273587,-842.4,0.00014246,2]
[335817395,1724506273596,-1572.78,0.00014246,2]
[335817396,1724506273605,-500.0,0.00014246,2]
[335817397,1724506273616,-855.59,0.00014246,2]
[335817398,1724506273628,-500.0,0.00014246,2]
[335817399,1724506273638,-500.0,0.00014246,2]
[335817400,1724506273648,-1500.12,0.00014246,2]
[335817401,1724506273657,-500.0,0.00014246,2]
[335817402,1724506273665,-1508.43,0.00014246,2]
[335817403,1724506273674,-870.94,0.00014246,2]
[335817404,1724506273684,-727.18,0.00014246,2]
[335817405,1724506273694,-500.0,0.00014246,2]
[335817406,1724506273703,-1223.2,0.00014246,2]
[335817407,1724506273713,-504.8723368,0.00014246,2]
[335817408,1724506273723,-500.0,0.00014246,2]
[335817409,1724506273732,-500.0,0.00014246,2]
[335817410,1724506273741,-644.25,0.00014246,2]
[335817411,1724506273751,-504.06,0.00014246,2]
[335817412,1724506273760,-1305.61,0.00014246,2]
[335817413,1724506273769,-500.0,0.00014246,2]
[335817414,1724506273779,-500.0,0.00014246,2]
[335817415,1724506273788,-500.0,0.00014246,2]
[335817416,1724506273798,-500.0,0.00014246,2]
[335817417,1724506273807,-500.0,0.00014246,2]
[335817418,1724506273817,-503.36033015,0.00014246,2]
[335817419,1724506273829,-500.0,0.00014246,2]
[335817420,1724506273839,-500.0,0.00014246,2]
[335817421,1724506273849,-1139.5,0.00014246,2]
[335817422,1724506273858,-563.79847369,0.00014246,2]
[335817423,1724506273867,-500.0,0.00014246,2]
[335817424,1724506273877,-500.0,0.00014246,2]
[335817425,1724506273886,-672.44,0.00014246,2]
[335817426,1724506273897,-500.0,0.00014246,2]
[335817427,1724506273907,-526.65,0.00014246,2]
[335817428,1724506273916,-714.74,0.00014246,2]
[335817429,1724506273925,-605.78,0.00014246,2]
[335817430,1724506273934,-500.0,0.00014246,2]
[335817431,1724506273944,-604.65792644,0.00014246,2]
[335817432,1724506273953,-1224.59,0.00014246,2]
[335817433,1724506273963,-1199.42,0.00014246,2]
[335817434,1724506273972,-1029.37,0.00014246,2]
[335817435,1724506273981,-500.0,0.00014246,2]
[335817436,1724506273991,-750.17,0.00014246,2]
[335817437,1724506274000,-774.99,0.00014246,2]
[335817438,1724506274010,-1524.4,0.00014246,2]
[335817439,1724506274020,-844.16,0.00014246,2]
[335817440,1724506274031,-500.0,0.00014246,2]
[335817441,1724506274041,-500.0,0.00014246,2]
[335817442,1724506274051,-1111.0,0.00014246,2]
[335817443,1724506274062,-564.49,0.00014246,2]
[335817444,1724506274072,-500.87301071,0.00014246,2]
[335817445,1724506274081,-795.47,0.00014246,2]
[335817446,1724506274222,-689.1,0.00014246,2]
[335817447,1724506274233,-501.98071286,0.00014246,2]
[335817448,1724506274245,-1731.69,0.00014246,2]
[335817449,1724506274256,-823.81,0.00014246,2]
[335817450,1724506274268,-500.0,0.00014246,2]
[335817451,1724506274278,-557.72,0.00014246,2]
[335817452,1724506274287,-1800.6,0.00014246,2]
[335817453,1724506274296,-560.25,0.00014246,2]
[335817454,1724506274305,-500.0,0.00014246,2]
[335817455,1724506274315,-2036.61,0.00014246,2]
[335817456,1724506274325,-500.0,0.00014246,2]
[335817457,1724506274334,-541.14,0.00014246,2]
[335817458,1724506274343,-806.73,0.00014246,2]
[335817459,1724506274352,-500.0,0.00014246,2]
[335817460,1724506274362,-1032.86,0.00014246,2]
[335817461,1724506274371,-591.82,0.00014246,2]
[335817462,1724506274381,-864.78,0.00014246,2]
[335817463,1724506274390,-2078.62,0.00014246,2]
[335817464,1724506274404,-611.59,0.00014246,2]
[335817465,1724506274413,-1244.75,0.00014246,2]
[335817466,1724506274423,-500.0,0.00014246,2]
[335817467,1724506274432,-501.54686121,0.00014246,2]
[335817468,1724506274442,-500.0,0.00014246,2]
[335817469,1724506274451,-500.0,0.00014246,2]
[335817470,1724506274460,-3256.2,0.00014246,2]
[335817471,1724506274470,-942.05,0.00014246,2]
[335817472,1724506274481,-500.0,0.00014246,2]
[335817473,1724506274494,-221.09674454,0.00014246,2]
[335817474,1724506274504,-1382.83,0.00014246,2]
[335817475,1724506274514,-1973.52,0.00014246,2]
[335817476,1724506274523,-500.0,0.00014246,2]
[335817477,1724506274535,-1201.46,0.00014246,2]
[335817478,1724506274544,-571.02,0.00014246,2]
[335817479,1724506274554,-2265.97,0.00014246,2]
[335817480,1724506274566,-1210.89,0.00014246,2]
[335817481,1724506274576,-500.0,0.00014246,2]
[335817482,1724506274586,-500.0,0.00014246,2]
[335817483,1724506274596,-500.0,0.00014246,2]
[335817484,1724506274606,-500.0,0.00014246,2]
[335817485,1724506274616,-567.57,0.00014246,2]
[335817486,1724506274626,-414.09701158,0.00014246,2]
[335817487,1724506274636,-958.1,0.00014246,2]
[335817488,1724506274651,-500.0,0.00014246,2]
[335817489,1724506274665,-500.0,0.00014246,2]
[335817490,1724506274675,-500.0,0.00014246,2]
[335817491,1724506274685,-500.0,0.00014246,2]
[335817492,1724506274695,-500.0,0.00014246,2]
[335817493,1724506274705,-5819.13,0.00014246,2]
[335817494,1724506274715,-500.0,0.00014246,2]
[335817495,1724506274725,-645.9,0.00014246,2]
[335817496,1724506274735,-3461.89,0.00014246,2]
[335817497,1724506274745,-705.78,0.00014246,2]
[335817498,1724506274754,-826.3,0.00014246,2]
[335817499,1724506274764,-1692.62,0.00014246,2]
[335817500,1724506274774,-500.0,0.00014246,2]
[335817501,1724506274783,-2022.3,0.00014246,2]
[335817502,1724506274794,-3569.12,0.00014246,2]
[335817503,1724506274804,-500.0,0.00014246,2]
[335817504,1724506274813,-1175.05,0.00014246,2]
[335817505,1724506274823,-690.27,0.00014246,2]
[335817506,1724506274834,-500.0,0.00014246,2]
[335817507,1724506274844,-566.98,0.00014246,2]
[335817508,1724506274854,-500.0,0.00014246,2]
[335817509,1724506274864,-950.9,0.00014246,2]
[335817510,1724506274874,-959.92,0.00014246,2]
[335817511,1724506274884,-3166.92,0.00014246,2]
[335817512,1724506274893,-902.98,0.00014246,2]
[335817513,1724506274903,-500.0,0.00014246,2]
[335817514,1724506274913,-664.43,0.00014246,2]
[335817515,1724506274922,-868.78,0.00014246,2]
[335817516,1724506274933,-2333.82,0.00014246,2]
[335817517,1724506274942,-2019.18,0.00014246,2]
[335817518,1724506274952,-6596.71384772,0.00014246,2]
[335817519,1724506274977,-1728.53615228,0.00014246,2]
[335817520,1724506274987,-31.88531902,0.00014246,2]
[335817521,1724506274999,-565.75468098,0.00014246,2]
[335817522,1724506275009,-500.0,0.00014246,2]
[335817523,1724506275019,-818.66,0.00014246,2]
[335817524,1724506275029,-152.94416973,0.00014246,2]
[335817525,1724506275043,-347.05583027,0.00014246,2]
[335817526,1724506275054,-1788.6154152,0.00014246,2]
[335817527,1724506277021,1000.0,0.00011818,2]
[335817529,1724506366699,511.05431923,0.00011818,2]
[335817531,1724506741241,2621.0080331,0.00011749,2]
[335817532,1724506897351,409.6361362,0.00011999,2]
[335817533,1724506898332,8876.5011327,0.00011653,2]
[335817534,1724506928286,253.3108524,0.00011947,2]
[335817538,1724507226148,-230.42980081,0.00012119,2]
[335817539,1724507236172,-69.57019919,0.00012119,2]
[335817540,1724507236196,-300.0,0.00012119,2]
[335817541,1724507236225,-6598.76644891,0.0001212,2]
[335817542,1724507244121,-472.30208883,0.00012127,2]
[335817543,1724507244142,-236.90105799,0.00012516,2]
[335817544,1724507251116,-572.42636577,0.00012356,2]
[335817547,1724507269626,497.86087317,0.000121,2]
[335817548,1724507286245,150.3,0.00010959,2]
[335817549,1724507297064,751.5,0.00010959,2]
[335817564,1724507350130,-9664.212107,0.0001212,2]
[335817576,1724507432278,-78.80034965,0.00012356,2]
[335817656,1724507438439,-1676.05962757,0.00012356,2]
[335817660,1724507438468,-491.24758698,0.00012356,2]
[335817661,1724507438478,-1210.38452591,0.00012779,3]
[335817662,1724507438487,-1039.02142974,0.00012779,2]
[335817664,1724507438497,-255.26970548,0.00012782,2]
[335817667,1724507438506,-355.162656,0.00012877,2]
[335817669,1724507438515,-300.0,0.00012878,2]
[335817671,1724507438524,-218.13734486,0.00012878,2]
[335817673,1724507438533,-12801.86359117,0.00012879,2]
[335817723,1724507440168,-2596.97571274,0.00012516,2]
[335817725,1724507440178,-28470.89728324,0.00012879,2]
[335817727,1724507440188,-195.69181628,0.00012886,2]
[335817729,1724507440198,-733.49337488,0.00012886,2]
[335817731,1724507440207,-263.11925391,0.00012898,2]
[335817733,1724507440220,-183.04136441,0.00012898,2]
[335817735,1724507440230,-180.88265675,0.00012898,2]
[335817737,1724507440239,-695.14803561,0.00012898,2]
[335817739,1724507440249,-286.25357028,0.00012898,2]
[335817741,1724507440260,-236.52489967,0.00012898,2]
[335817743,1724507440269,-191.70702256,0.00012898,2]
[335817745,1724507440279,-899.22793923,0.00012934,2]
[335817747,1724507440289,-196.77202293,0.00012934,2]
[335817751,1724507440300,-154.72922386,0.00012934,2]
[335817753,1724507440309,-285.86640375,0.00012934,2]
[335817755,1724507440319,-178.60519707,0.00012934,2]
[335817757,1724507440329,-154.98780454,0.00012934,2]
[335817759,1724507440338,-521.54236624,0.00012934,2]
[335817761,1724507440348,-160.52328625,0.00012934,2]
[335817762,1724507440357,-665.79988618,0.00012934,2]
[335817764,1724507440367,-174.92435112,0.00012934,2]
[335817766,1724507440376,-308.77232842,0.00012971,2]
[335817768,1724507440385,-154.72922386,0.00012971,2]
[335817770,1724507440395,-729.15793853,0.00012971,2]
[335817772,1724507440405,-520.86090941,0.00012971,2]
[335817775,1724507440415,-729.15793853,0.00012985,2]
[335817777,1724507440424,-493.90973082,0.00012985,2]
[335817779,1724507440433,-188.65696378,0.00012985,2]
[335817781,1724507440443,-301.69894114,0.00012985,2]
[335817783,1724507440452,-320.43172091,0.00012989,2]
[335817785,1724507440462,-223.63719614,0.00012989,2]
[335817787,1724507440473,-422.52524319,0.00012999,2]
[335817789,1724507440483,-4624.06147225,0.0001305,2]
[335817790,1724507440493,-2000.0,0.00013095,2]
[335817791,1724507440502,-234.06161151,0.000131,2]
[335817792,1724507440511,-180222.30600613,0.00013194,2]
[335817793,1724507440528,-5668.02084276,0.00013194,2]
[335818041,1724507443030,-10.52514508,0.00012898,2]
[335818042,1724507443043,-144.18863443,0.00012898,2]
[335818043,1724507443052,-223.63719614,0.00012985,2]
[335818044,1724507443063,-220.73292993,0.00013051,2]
[335818045,1724507443072,-90661.93224763,0.00013194,2]
[335819642,1724507901045,799.90714105,0.00011999,2]
[335819643,1724507916288,203.1004,0.00012089,2]
[335819644,1724507964694,200.43693464,0.00012089,2]
[335819645,1724508001450,4142.72437601,0.00012089,2]
[335819646,1724508018372,218.62299037,0.00012089,2]
[335819647,1724508023053,7898.09278961,0.00012089,2]
[335819648,1724508027027,3594.56006351,0.00012089,2]
[335819649,1724508030196,214.75801558,0.00012089,2]
[335819651,1724508139033,165.21890223,0.00012,2]
[335819654,1724508163253,320.43172091,0.00011999,2]
[335819656,1724508193253,320.43172091,0.00011999,2]
[335819659,1724508286381,154.71377951,0.00011999,2]
[335819662,1724508315864,422.52524319,0.00011999,2]
[335819665,1724508339154,-203.1004,0.00012123,2]
[335819666,1724508339176,-28.70704469,0.00012156,2]
[335819668,1724508388315,27296.18427917,0.00011987,2]
[335819674,1724508428574,-174.39335531,0.00012156,2]
[335819675,1724508428597,-59.5679297,0.00012163,2]
[335819676,1724508455503,-1046.23839131,0.00012163,2]
[335819677,1724508455526,-203.1004,0.00012189,2]
[335819678,1724508455549,-203.1004,0.00012222,2]
[335819679,1724508455571,-203.1004,0.00012255,2]
[335819680,1724508455594,-203.1004,0.00012288,2]
[335819681,1724508455616,-203.1004,0.00012321,2]
[335819682,1724508455638,-203.1004,0.00012355,2]
[335819683,1724508455661,-203.1004,0.00012388,2]
[335819684,1724508455682,-203.1004,0.00012421,2]
[335819685,1724508455704,-203.1004,0.00012454,2]
[335819686,1724508455725,-203.1004,0.00012487,2]
[335819687,1724508455748,-203.1004,0.0001252,2]
[335819688,1724508455769,-203.1004,0.00012554,2]
[335819689,1724508455790,-203.1004,0.00012587,2]
[335819690,1724508455811,-203.1004,0.0001262,2]
[335819691,1724508455832,-2240.72225487,0.00012629,2]
[335819692,1724508455854,-413.69776679,0.00012629,2]
[335819693,1724508468646,-1093.37669572,0.00012629,2]
[335819694,1724508487813,1149.1964974,0.00011849,2]
[335819707,1724508594390,158.222096,0.00011892,2]
[335819708,1724508594817,145.577904,0.00011995,2]
[335819709,1724508594840,12.644192,0.00011995,2]
[335819710,1724508594882,158.222096,0.00012099,2]
[335819711,1724508595068,151.76543672,0.00012202,2]
[335819712,1724508595091,6.45665928,0.00012202,2]
[335819713,1724508595290,158.222096,0.00012305,2]
[335819745,1724508638241,-158.222096,0.00012408,2]
[335819747,1724508638251,-158.222096,0.00012512,2]
[335819749,1724508638262,-2120.15574118,0.00012516,2]
[335819752,1724508638272,-300.0,0.0001255,2]
[335819753,1724508638282,-996.10718479,0.00012551,2]
[335819754,1724508638411,-356.8544115,0.00012551,2]
[335819756,1724508638577,-393.28667388,0.00012551,2]
[335819757,1724508638587,-333.83154978,0.00012551,2]
[335819778,1724508640478,-1200.68598304,0.00012551,2]
[335819780,1724508640488,-1396.00306611,0.00012551,2]
[335819782,1724508640497,-153.0,0.0001265,2]
[335819784,1724508640507,-153.0,0.0001265,2]
[335819786,1724508640517,-153.0,0.0001265,2]
[335819788,1724508640528,-153.0,0.0001265,2]
[335819790,1724508640538,-899.22793923,0.00012779,2]
[335819793,1724508640550,-4624.06147225,0.00012779,2]
[335819795,1724508640560,-355.162656,0.00012877,2]
[335819797,1724508640570,-568.99410922,0.00012898,2]
[335819798,1724508640579,-5570.78046576,0.000129,2]
[335819799,1724508640590,-160.52328625,0.00012934,2]
[335819800,1724508640599,-174.92435112,0.00012934,2]
[335819801,1724508640608,-160.52328625,0.00012934,2]
[335819802,1724508640618,-309.18063735,0.00012934,2]
[335819803,1724508640630,-154.71377951,0.00012934,2]
[335819804,1724508640639,-301.69894114,0.00012934,2]
[335819805,1724508640649,-568.64211165,0.00012934,2]
[335819806,1724508640658,-188.65696378,0.00012971,2]
[335819807,1724508640668,-154.71377951,0.00012971,2]
[335819808,1724508640678,-729.15793853,0.00012971,2]
[335819809,1724508640687,-695.14803561,0.00012971,2]
[335819810,1724508640696,-2000.0,0.00012984,2]
[335819811,1724508640706,-28470.89728324,0.00012984,2]
[335819812,1724508640715,-520.92060091,0.00012985,2]
[335819813,1724508640724,-223.63719614,0.00012985,2]
[335819814,1724508640733,-154.71377951,0.00012989,2]
[335819815,1724508640742,-234.06161151,0.00012997,2]
[335819816,1724508640751,-153.0,0.00013,2]
[335819817,1724508640760,-1000.0,0.00013,13]
[335819818,1724508640769,-153.0,0.00013014,2]
[335819819,1724508640778,-153.0,0.00013014,2]
[335819820,1724508640787,-154.72922386,0.00013025,2]
[335819821,1724508640796,-154.71377951,0.00013025,2]
[335819822,1724508640805,-493.90973082,0.00013051,2]
[335819823,1724508640814,-196.77202293,0.00013051,2]
[335819824,1724508640824,-5720.57521366,0.00013078,2]
[335819825,1724508640833,-150.0,0.00013081,2]
[335819826,1724508640842,-153.0,0.000131,2]
[335819827,1724508640851,-153.0,0.000131,2]
[335819828,1724508640861,-234.06161147,0.00013147,2]
[335819829,1724508640871,-409.2733729,0.00013178,2]
[335819830,1724508640880,-409.2733729,0.00013178,2]
[335819831,1724508640889,-3749.01365244,0.00013193,2]
[335819832,1724508640898,-6741.18375956,0.00013283,2]
[335819833,1724508640907,-234.06161147,0.00013298,2]
[335819834,1724508640918,-150.112233,0.000133,2]
[335819835,1724508640927,-150.112233,0.000133,2]
[335819836,1724508640936,-191.70702256,0.00013333,2]
[335819837,1724508640946,-154.98780454,0.00013333,2]
[335819838,1724508640954,-308.77232842,0.00013333,2]
[335819839,1724508640964,-285.86640375,0.00013333,2]
[335819840,1724508640974,-521.54236624,0.00013333,2]
[335819841,1724508640983,-236.52489967,0.00013333,2]
[335819842,1724508640992,-258.20720256,0.00013333,2]
[335819843,1724508641212,-150.112233,0.000134,2]
[335819844,1724508641222,-306.0,0.00013425,2]
[335819845,1724508641232,-207.7300879,0.00013425,2]
[335819846,1724508641241,-207.7300879,0.00013425,2]
[335819847,1724508641251,-207.7300879,0.00013425,2]
[335819848,1724508641262,-207.7300879,0.00013425,2]
[335819849,1724508641271,-207.7300879,0.00013425,2]
[335819850,1724508641280,-207.7300879,0.00013425,2]
[335819851,1724508641290,-234.06161147,0.00013448,2]
[335819852,1724508641302,-306.0,0.00013472,2]
[335819853,1724508641311,-153.0,0.00013472,2]
[335819854,1724508641321,-153.0,0.00013472,2]
[335819855,1724508641330,-153.0,0.00013472,2]
[335819856,1724508641340,-306.0,0.00013472,2]
[335819857,1724508641350,-665.79988618,0.00013477,2]
[335819858,1724508641359,-183.04136441,0.00013477,2]
[335819859,1724508641369,-180.88265675,0.00013477,2]
[335819860,1724508641378,-88888.0,0.00013487,2]
[335819861,1724508641388,-286.25357028,0.00013496,2]
[335819862,1724508641398,-195.69181628,0.00013497,2]
[335819863,1724508641407,-150.112233,0.000135,2]
[335819864,1724508641416,-150.112233,0.000135,2]
[335819865,1724508641426,-346.46491659,0.00013596,2]
[335819866,1724508641435,-733.49337488,0.00013596,2]
[335819867,1724508641445,-220.73292993,0.00013596,2]
[335819868,1724508641454,-263.11925391,0.00013596,2]
[335819869,1724508641464,-234.06161147,0.00013598,2]
[335819870,1724508641473,-2709.22796975,0.00013598,2]
[335819871,1724508641482,-40000.0,0.00013598,2]
[335819872,1724508641491,-417.41298625,0.00013599,2]
[335819873,1724508641500,-154.72922386,0.00013599,2]
[335819874,1724508641510,-2000.0,0.000136,2]
[335819875,1724508641519,-150.112233,0.000136,2]
[335819876,1724508641528,-150.112233,0.000136,2]
[335819877,1724508641537,-500.0,0.00013673,2]
[335819878,1724508641547,-155.0,0.00013673,2]
[335819879,1724508641556,-190.01792927,0.00013673,2]
[335819880,1724508641566,-158.8,0.00013673,2]
[335819881,1724508641576,-168.01711624,0.00013673,2]
[335819882,1724508641585,-500.0,0.00013673,2]
[335819883,1724508641594,-312.01579195,0.00013673,2]
[335819884,1724508641604,-500.0,0.00013673,2]
[335819885,1724508641616,-402.02044802,0.00013673,2]
[335819886,1724508641625,-150.0,0.00013674,2]
[335819887,1724508641634,-522.0,0.00013674,2]
[335819888,1724508641643,-178.60519707,0.00013688,2]
[335819889,1724508641652,-452.0896187,0.00013697,2]
[335819890,1724508641662,-1983.10024848,0.00013698,2]
[335819891,1724508641671,-500.0,0.00013698,2]
[335819892,1724508641681,-500.0,0.00013698,2]
[335819893,1724508641690,-500.0,0.00013698,2]
[335819894,1724508641699,-500.0,0.00013698,2]
[335819895,1724508641708,-500.0,0.00013698,2]
[335819896,1724508641717,-500.0,0.00013698,2]
[335819897,1724508641727,-500.0,0.00013698,2]
[335819898,1724508641736,-500.0,0.00013698,2]
[335819899,1724508641746,-616.21891281,0.00013698,2]
[335819900,1724508641755,-500.0,0.00013698,2]
[335819901,1724508641764,-500.0,0.00013698,2]
[335819902,1724508641773,-329.47573755,0.00013698,2]
[335819912,1724508643239,-337.12093781,0.00012934,2]
[335819913,1724508643249,-154.71377951,0.00012971,2]
[335819914,1724508643260,-154.71377951,0.00012999,2]
[335819915,1724508643270,-42.1735671,0.00013698,2]
[335819916,1724508643279,-500.0,0.00013698,2]
[335819917,1724508643289,-384.71365236,0.00013698,2]
[335819918,1724508643298,-469.39634188,0.00013698,2]
[335819919,1724508643308,-500.0,0.00013698,2]
[335819920,1724508643319,-630.41360598,0.00013698,2]
[335819921,1724508643329,-500.0,0.00013698,2]
[335819923,1724508643341,-502.96034577,0.00013698,2]
[335819926,1724508643352,-504.91529324,0.00013698,2]
[335819927,1724508643362,-500.0,0.00013698,2]
[335819929,1724508643374,-500.0,0.00013698,2]
[335819932,1724508643383,-500.0,0.00013698,2]
[335819934,1724508643392,-554.37074872,0.00013698,2]
[335819936,1724508643401,-500.0,0.00013698,2]
[335819937,1724508643411,-500.0,0.00013698,2]
[335819938,1724508643421,-500.0,0.00013698,2]
[335819939,1724508643430,-501.1535577,0.00013698,2]
[335819940,1724508643440,-500.0,0.00013698,2]
[335819941,1724508643450,-501.9178926,0.00013698,2]
[335819942,1724508643461,-509.38034632,0.00013698,2]
[335819943,1724508643471,-513.56,0.00013698,2]
[335819944,1724508643480,-500.0,0.00013698,2]
[335819945,1724508643489,-739.51,0.00013698,2]
[335819946,1724508643499,-792.71,0.00013698,2]
[335819947,1724508643509,-500.0,0.00013698,2]
[335819948,1724508643521,-500.0,0.00013698,2]
[335819949,1724508643532,-500.0,0.00013698,2]
[335819950,1724508643543,-500.0,0.00013698,2]
[335819951,1724508643555,-523.43,0.00013698,2]
[335819952,1724508643565,-500.0,0.00013698,2]
[335819953,1724508643574,-863.55,0.00013698,2]
[335819954,1724508643584,-500.0,0.00013698,2]
[335819955,1724508643593,-395.21759524,0.00013698,2]
[335819956,1724508643622,-104.78240476,0.00013698,2]
[335819957,1724508643631,-500.0,0.00013698,2]
[335819958,1724508643641,-500.0,0.00013698,2]
[335819959,1724508643651,-500.0,0.00013698,2]
[335819960,1724508643663,-500.0,0.00013698,2]
[335819961,1724508643672,-500.0,0.00013698,2]
[335819962,1724508643682,-502.9669734,0.00013698,2]
[335819963,1724508643691,-519.73,0.00013698,2]
[335819964,1724508643700,-500.0,0.00013698,2]
[335819965,1724508643709,-646.96,0.00013698,2]
[335819966,1724508643719,-500.18172759,0.00013698,2]
[335819967,1724508643729,-500.0,0.00013698,2]
[335819968,1724508643739,-662.46,0.00013698,2]
[335819969,1724508643748,-500.0,0.00013698,2]
[335819970,1724508643757,-500.0,0.00013698,2]
[335819971,1724508643767,-500.0,0.00013698,2]
[335819972,1724508643777,-500.0,0.00013698,2]
[335819973,1724508643786,-500.0,0.00013698,2]
[335819974,1724508643795,-500.0,0.00013698,2]
[335819975,1724508643805,-500.0,0.00013698,2]
[335819976,1724508643814,-500.0,0.00013698,2]
[335819977,1724508643824,-500.0,0.00013698,2]
[335819978,1724508643833,-500.0,0.00013698,2]
[335819979,1724508643843,-500.0,0.00013698,2]
[335819980,1724508643853,-500.0,0.00013698,2]
[335819981,1724508643863,-2107.98,0.00013698,2]
[335819982,1724508643883,-500.0,0.00013698,2]
[335819983,1724508643892,-503.11997067,0.00013698,2]
[335819984,1724508643901,-643.50200613,0.00013698,2]
[335819985,1724508643910,-500.0,0.00013698,2]
[335819986,1724508643920,-527.49750531,0.00013698,2]
[335819987,1724508643929,-500.0,0.00013698,2]
[335819988,1724508643939,-500.0,0.00013698,2]
[335819989,1724508643948,-500.0,0.00013698,2]
[335819990,1724508643957,-500.0,0.00013698,2]
[335819991,1724508643966,-690.15,0.00013698,2]
[335819992,1724508643976,-500.0,0.00013698,2]
[335819993,1724508643985,-500.0,0.00013698,2]
[335819994,1724508643994,-500.0,0.00013698,2]
[335819995,1724508644003,-500.0,0.00013698,2]
[335819996,1724508644013,-500.0,0.00013698,2]
[335819997,1724508644022,-500.0,0.00013698,2]
[335819998,1724508644031,-500.0,0.00013698,2]
[335819999,1724508644040,-500.0,0.00013698,2]
[335820000,1724508644050,-500.0,0.00013698,2]
[335820001,1724508644059,-500.0,0.00013698,2]
[335820002,1724508644069,-500.0,0.00013698,2]
[335820003,1724508644078,-500.0,0.00013698,2]
[335820004,1724508644088,-500.0,0.00013698,2]
[335820005,1724508644098,-752.55,0.00013698,2]
[335820006,1724508644107,-500.0,0.00013698,2]
[335820007,1724508644119,-500.0,0.00013698,2]
[335820008,1724508644129,-500.0,0.00013698,2]
[335820009,1724508644140,-500.0,0.00013698,2]
[335820010,1724508644153,-500.0,0.00013698,2]
[335820011,1724508644163,-500.0,0.00013698,2]
[335820012,1724508644173,-500.0,0.00013698,2]